[Event "Gibraltar Masters 18th"]
[Site "Gibraltar"]
[Date "2020.01.21"]
[Round "1.26"]
[White "Chigaev, Maksim"]
[Black "Zhukova, Natalia"]
[Result "1-0"]
[ECO "A00"]
[WhiteElo "2616"]
[BlackElo "2338"]
[PlyCount "63"]
[EventDate "2020.01.21"]
[EventType "swiss"]
[EventRounds "10"]
[EventCountry "GGB"]
[SourceTitle "BritBase"]
[Source "John Saunders"]
[SourceDate "2021.06.05"]
[SourceVersion "1"]
[SourceVersionDate "2021.06.05"]
[SourceQuality "1"]
[TimeControl "40/100:0"]
[WhiteClock "0:45:46"]
[BlackClock "0:01:12"]

1. Nf3 {[%emt 0:00:00]} Nf6 {[%emt 0:00:00]} 2. g3 {[%emt 0:00:00]} d5 {
[%emt 0:00:00]} 3. Bg2 {[%emt 0:00:00]} Nbd7 {[%emt 0:00:00]} 4. O-O {[%emt 0:
00:00]} e5 {[%emt 0:00:00]} 5. d3 {[%emt 0:00:00]} Bd6 {[%emt 0:00:00]} 6. Nc3
{[%emt 0:00:00]} c6 {[%emt 0:00:00]} 7. e4 {[%emt 0:00:00]} O-O {[%emt 0:00:00]
} 8. Nd2 {[%emt 0:00:00]} Nb6 {[%emt 0:00:00]} 9. Qe1 {[%emt 0:00:00]} Re8 {
[%emt 0:00:00]} 10. Kh1 {[%emt 0:00:00]} Bd7 {[%emt 0:00:00]} 11. f4 {[%emt 0:
00:00]} exf4 {[%emt 0:00:00]} 12. gxf4 {[%emt 0:00:00]} dxe4 {[%emt 0:00:00]}
13. dxe4 {[%emt 0:00:00]} Nfd5 {[%emt 0:00:00]} 14. Nb3 {[%emt 0:00:00]} Qc7 {
[%emt 0:00:00]} 15. e5 {[%emt 0:00:00]} Nxc3 {[%emt 0:00:00]} 16. Qxc3 {
[%emt 0:00:00]} Bf8 {[%emt 0:00:00]} 17. a4 {[%emt 0:00:00]} Be6 {[%emt 0:00:
00]} 18. a5 {[%emt 0:00:00]} Nd5 {[%emt 0:00:00]} 19. Qg3 {[%emt 0:00:00]} Nb4
{[%emt 0:00:00]} 20. Nd4 {[%emt 0:00:00]} Bc4 {[%emt 0:00:00]} 21. Rf2 {
[%emt 0:00:00]} Rad8 {[%emt 0:00:00]} 22. Be3 {[%emt 0:00:00]} Nd5 {[%emt 0:00:
00]} 23. Bd2 {[%emt 0:00:00]} Nb4 {[%emt 0:00:21]} 24. Bxb4 {[%emt 0:00:00]}
Bxb4 {[%emt 0:00:37]} 25. Nf5 {[%emt 0:00:00]} g6 {[%emt 0:00:00]} 26. Ne3 {
[%emt 0:00:00]} Ba6 {[%emt 0:00:02]} 27. Ng4 {[%emt 0:00:00]} Be7 {[%emt 0:00:
01]} 28. f5 {[%emt 0:00:00]} Rf8 {[%emt 0:00:07]} 29. Qf4 {[%emt 0:00:00]} Kh8
{[%emt 0:00:00]} 30. f6 {[%emt 0:00:00]} Bc5 {[%emt 0:00:00]} 31. Qh6 {[%emt 0:
00:00]} Rg8 {[%emt 0:00:00]} 32. Rf3 {[%emt 0:00:00]} 1-0

[Event "Gibraltar Masters 18th"]
[Site "Gibraltar"]
[Date "2020.01.21"]
[Round "1.27"]
[White "Borocz, Istvan"]
[Black "Kobalia, Mikhail"]
[Result "0-1"]
[ECO "B88"]
[WhiteElo "2337"]
[BlackElo "2609"]
[PlyCount "76"]
[EventDate "2020.01.21"]
[EventType "swiss"]
[EventRounds "10"]
[EventCountry "GGB"]
[SourceTitle "BritBase"]
[Source "John Saunders"]
[SourceDate "2021.06.05"]
[SourceVersion "1"]
[SourceVersionDate "2021.06.05"]
[SourceQuality "1"]
[TimeControl "40/100:0"]
[WhiteClock "0:02:55"]
[BlackClock "0:11:43"]

1. e4 {[%emt 0:00:00]} c5 {[%emt 0:00:00]} 2. Nf3 {[%emt 0:00:00]} d6 {[%emt 0:
00:00]} 3. d4 {[%emt 0:00:00]} cxd4 {[%emt 0:00:00]} 4. Nxd4 {[%emt 0:00:00]}
Nf6 {[%emt 0:00:00]} 5. Nc3 {[%emt 0:00:00]} Nc6 {[%emt 0:00:00]} 6. Bc4 {
[%emt 0:00:00]} e6 {[%emt 0:00:00]} 7. O-O {[%emt 0:00:00]} Be7 {[%emt 0:00:00]
} 8. Bb3 {[%emt 0:00:00]} O-O {[%emt 0:00:00]} 9. f4 {[%emt 0:00:00]} Na5 {
[%emt 0:00:00]} 10. f5 {[%emt 0:00:00]} e5 {[%emt 0:00:00]} 11. Nde2 {[%emt 0:
00:00]} Nxb3 {[%emt 0:00:00]} 12. axb3 {[%emt 0:00:00]} b5 {[%emt 0:00:00]} 13.
Bg5 {[%emt 0:00:00]} Bb7 {[%emt 0:00:00]} 14. Bxf6 {[%emt 0:00:00]} Bxf6 {
[%emt 0:00:00]} 15. Nd5 {[%emt 0:00:00]} b4 {[%emt 0:00:00]} 16. Kh1 {[%emt 0:
00:00]} a5 {[%emt 0:00:00]} 17. Ng3 {[%emt 0:00:00]} Bxd5 {[%emt 0:00:00]} 18.
Qxd5 {[%emt 0:00:00]} Qc7 {[%emt 0:00:00]} 19. Nh5 {[%emt 0:00:00]} Bg5 {
[%emt 0:00:00]} 20. Qd3 {[%emt 0:00:00]} Rfc8 {[%emt 0:00:00]} 21. Qg3 {
[%emt 0:00:00]} f6 {[%emt 0:00:00]} 22. h4 {[%emt 0:00:00]} Qf7 {[%emt 0:00:00]
} 23. Qg4 {[%emt 0:00:00]} Bh6 {[%emt 0:00:00]} 24. Rad1 {[%emt 0:00:00]} Ra6 {
[%emt 0:00:00]} 25. Rf2 {[%emt 0:00:00]} Rc5 {[%emt 0:00:00]} 26. Rd3 {[%emt 0:
00:00]} Rac6 {[%emt 0:00:00]} 27. Qd1 {[%emt 0:00:00]} Qc7 {[%emt 0:00:00]} 28.
Rg3 {[%emt 0:00:00]} Kf8 {[%emt 0:00:00]} 29. Qg4 {[%emt 0:00:00]} d5 {[%emt 0:
00:00]} 30. exd5 {[%emt 0:00:00]} Rxd5 {[%emt 0:00:00]} 31. Rd3 {[%emt 0:00:29]
} Rxd3 {[%emt 0:00:00]} 32. cxd3 {[%emt 0:00:00]} Rc1+ {[%emt 0:00:00]} 33. Kh2
{[%emt 0:00:00]} e4+ {[%emt 0:00:00]} 34. Ng3 {[%emt 0:00:00]} e3 {[%emt 0:00:
00]} 35. Re2 {[%emt 0:00:00]} Bf4 {[%emt 0:00:00]} 36. Kh3 {[%emt 0:00:00]}
Bxg3 {[%emt 0:00:00]} 37. Qxg3 {[%emt 0:00:00]} Rh1+ {[%emt 0:00:00]} 38. Kg4 {
[%emt 0:00:00]} h5+ {[%emt 0:00:00]} 0-1

[Event "Gibraltar Masters 18th"]
[Site "Gibraltar"]
[Date "2020.01.21"]
[Round "1.28"]
[White "Yilmaz, Mustafa"]
[Black "Lujan, Carolina"]
[Result "1-0"]
[ECO "A16"]
[WhiteElo "2607"]
[BlackElo "2330"]
[PlyCount "67"]
[EventDate "2020.01.21"]
[EventType "swiss"]
[EventRounds "10"]
[EventCountry "GGB"]
[SourceTitle "BritBase"]
[Source "John Saunders"]
[SourceDate "2021.06.05"]
[SourceVersion "1"]
[SourceVersionDate "2021.06.05"]
[SourceQuality "1"]
[TimeControl "40/100:0"]
[WhiteClock "0:30:58"]
[BlackClock "0:01:43"]

1. c4 {[%emt 0:00:00]} Nf6 {[%emt 0:00:00]} 2. Nc3 {[%emt 0:00:00]} d5 {
[%emt 0:00:00]} 3. cxd5 {[%emt 0:00:00]} Nxd5 {[%emt 0:00:00]} 4. g3 {[%emt 0:
00:00]} g6 {[%emt 0:00:00]} 5. Bg2 {[%emt 0:00:00]} Nxc3 {[%emt 0:00:00]} 6.
bxc3 {[%emt 0:00:00]} Bg7 {[%emt 0:00:00]} 7. Rb1 {[%emt 0:00:00]} Nc6 {
[%emt 0:00:00]} 8. h4 {[%emt 0:00:00]} h6 {[%emt 0:00:00]} 9. d4 {[%emt 0:00:
00]} O-O {[%emt 0:00:00]} 10. h5 {[%emt 0:00:00]} g5 {[%emt 0:00:00]} 11. f4 {
[%emt 0:00:00]} g4 {[%emt 0:00:00]} 12. e4 {[%emt 0:00:00]} f5 {[%emt 0:00:00]}
13. e5 {[%emt 0:00:00]} Na5 {[%emt 0:00:00]} 14. Ne2 {[%emt 0:00:00]} c6 {
[%emt 0:00:00]} 15. d5 {[%emt 0:00:00]} cxd5 {[%emt 0:00:00]} 16. Qxd5+ {
[%emt 0:00:00]} Qxd5 {[%emt 0:00:00]} 17. Bxd5+ {[%emt 0:00:00]} e6 {[%emt 0:
00:00]} 18. Bg2 {[%emt 0:00:00]} Bd7 {[%emt 0:00:00]} 19. Kf2 {[%emt 0:00:00]}
Rfd8 {[%emt 0:00:00]} 20. Be3 {[%emt 0:00:00]} Bf8 {[%emt 0:00:00]} 21. Rhd1 {
[%emt 0:00:00]} Ba4 {[%emt 0:00:00]} 22. Rxd8 {[%emt 0:00:00]} Rxd8 {[%emt 0:
00:00]} 23. Bxb7 {[%emt 0:00:00]} Be8 {[%emt 0:00:00]} 24. Nd4 {[%emt 0:00:00]}
Bc5 {[%emt 0:00:00]} 25. Nxf5 {[%emt 0:00:00]} Bxe3+ {[%emt 0:00:00]} 26. Nxe3
{[%emt 0:00:00]} Rd2+ {[%emt 0:00:00]} 27. Ke1 {[%emt 0:00:00]} Rd3 {[%emt 0:
00:00]} 28. Nxg4 {[%emt 0:00:00]} Rxg3 {[%emt 0:00:00]} 29. Nf6+ {[%emt 0:00:
00]} Kf8 {[%emt 0:00:00]} 30. Be4 {[%emt 0:00:00]} Nc6 {[%emt 0:00:00]} 31. Rb7
{[%emt 0:00:00]} Rxc3 {[%emt 0:00:00]} 32. Bg6 {[%emt 0:00:00]} Bxg6 {[%emt 0:
00:25]} 33. hxg6 {[%emt 0:00:00]} Rg3 {[%emt 0:00:00]} 34. Rf7# {[%emt 0:00:08]
} 1-0

[Event "Gibraltar Masters 18th"]
[Site "Gibraltar"]
[Date "2020.01.21"]
[Round "1.29"]
[White "Divya, Deshmukh"]
[Black "Karthikeyan, Murali"]
[Result "0-1"]
[ECO "A47"]
[WhiteElo "2322"]
[BlackElo "2606"]
[PlyCount "68"]
[EventDate "2020.01.21"]
[EventType "swiss"]
[EventRounds "10"]
[EventCountry "GGB"]
[SourceTitle "BritBase"]
[Source "John Saunders"]
[SourceDate "2021.06.05"]
[SourceVersion "1"]
[SourceVersionDate "2021.06.05"]
[SourceQuality "1"]
[TimeControl "40/100:0"]
[WhiteClock "0:05:20"]
[BlackClock "0:10:23"]

1. d4 {[%emt 0:00:00]} Nf6 {[%emt 0:00:00]} 2. Nf3 {[%emt 0:00:00]} e6 {
[%emt 0:00:00]} 3. Bf4 {[%emt 0:00:00]} b6 {[%emt 0:00:00]} 4. e3 {[%emt 0:00:
00]} Bb7 {[%emt 0:00:00]} 5. Bd3 {[%emt 0:00:00]} Be7 {[%emt 0:00:00]} 6. h3 {
[%emt 0:00:00]} O-O {[%emt 0:00:00]} 7. O-O {[%emt 0:00:00]} c5 {[%emt 0:00:00]
} 8. Nbd2 {[%emt 0:00:00]} d6 {[%emt 0:00:00]} 9. c3 {[%emt 0:00:00]} Nc6 {
[%emt 0:00:00]} 10. Qe2 {[%emt 0:00:00]} Qc7 {[%emt 0:00:00]} 11. Bh2 {[%emt 0:
00:00]} e5 {[%emt 0:00:00]} 12. dxe5 {[%emt 0:00:00]} Nxe5 {[%emt 0:00:00]} 13.
Nxe5 {[%emt 0:00:00]} dxe5 {[%emt 0:00:00]} 14. Ba6 {[%emt 0:00:00]} Bxa6 {
[%emt 0:00:00]} 15. Qxa6 {[%emt 0:00:00]} Rfe8 {[%emt 0:00:00]} 16. Nc4 {
[%emt 0:00:00]} Bf8 {[%emt 0:00:00]} 17. a4 {[%emt 0:00:00]} Rab8 {[%emt 0:00:
00]} 18. Rfd1 {[%emt 0:00:00]} Re6 {[%emt 0:00:00]} 19. Qb5 {[%emt 0:00:00]} g5
{[%emt 0:00:00]} 20. f3 {[%emt 0:00:00]} h5 {[%emt 0:00:00]} 21. e4 {[%emt 0:
00:00]} Rc8 {[%emt 0:00:00]} 22. a5 {[%emt 0:00:00]} g4 {[%emt 0:00:00]} 23.
axb6 {[%emt 0:00:00]} axb6 {[%emt 0:00:00]} 24. Ra6 {[%emt 0:00:00]} Rd8 {
[%emt 0:00:00]} 25. Rda1 {[%emt 0:00:00]} gxf3 {[%emt 0:00:00]} 26. gxf3 {
[%emt 0:00:00]} Nxe4 {[%emt 0:00:00]} 27. fxe4 {[%emt 0:00:00]} Rg6+ {[%emt 0:
00:00]} 28. Kf2 {[%emt 0:00:00]} Qe7 {[%emt 0:00:00]} 29. Rg1 {[%emt 0:00:00]}
Qh4+ {[%emt 0:00:00]} 30. Bg3 {[%emt 0:00:00]} Qxe4 {[%emt 0:00:00]} 31. Rxb6 {
[%emt 0:00:00]} Qc2+ {[%emt 0:00:00]} 32. Kf3 {[%emt 0:00:00]} Rd3+ {[%emt 0:
00:00]} 33. Ne3 {[%emt 0:00:00]} Rxe3+ {[%emt 0:00:00]} 34. Kxe3 {[%emt 0:00:
00]} Bh6+ {[%emt 0:00:00]} 0-1

[Event "Gibraltar Masters 18th"]
[Site "Gibraltar"]
[Date "2020.01.21"]
[Round "1.30"]
[White "Pichot, Alan"]
[Black "Heinemann, Josefine"]
[Result "1/2-1/2"]
[ECO "C83"]
[WhiteElo "2606"]
[BlackElo "2317"]
[PlyCount "71"]
[EventDate "2020.01.21"]
[EventType "swiss"]
[EventRounds "10"]
[EventCountry "GGB"]
[SourceTitle "BritBase"]
[Source "John Saunders"]
[SourceDate "2021.06.05"]
[SourceVersion "1"]
[SourceVersionDate "2021.06.05"]
[SourceQuality "1"]
[TimeControl "40/100:0"]
[WhiteClock "0:00:56"]
[BlackClock "0:33:52"]

1. e4 {[%emt 0:00:00]} e5 {[%emt 0:00:00]} 2. Nf3 {[%emt 0:00:00]} Nc6 {
[%emt 0:00:00]} 3. Bb5 {[%emt 0:00:00]} a6 {[%emt 0:00:00]} 4. Ba4 {[%emt 0:00:
00]} Nf6 {[%emt 0:00:00]} 5. O-O {[%emt 0:00:00]} Nxe4 {[%emt 0:00:00]} 6. d4 {
[%emt 0:00:00]} b5 {[%emt 0:00:00]} 7. Bb3 {[%emt 0:00:00]} d5 {[%emt 0:00:00]}
8. dxe5 {[%emt 0:00:00]} Be6 {[%emt 0:00:00]} 9. c3 {[%emt 0:00:00]} Be7 {
[%emt 0:00:00]} 10. Bc2 {[%emt 0:00:00]} O-O {[%emt 0:00:00]} 11. Nbd2 {
[%emt 0:00:00]} f5 {[%emt 0:00:00]} 12. exf6 {[%emt 0:00:00]} Nxf6 {[%emt 0:00:
00]} 13. Re1 {[%emt 0:00:00]} Qd7 {[%emt 0:00:00]} 14. a4 {[%emt 0:00:00]} b4 {
[%emt 0:00:00]} 15. a5 {[%emt 0:00:00]} Bg4 {[%emt 0:00:00]} 16. h3 {[%emt 0:
00:00]} Bh5 {[%emt 0:00:00]} 17. Ba4 {[%emt 0:00:00]} Bc5 {[%emt 0:00:00]} 18.
cxb4 {[%emt 0:00:00]} Ba7 {[%emt 0:00:00]} 19. b3 {[%emt 0:00:00]} Qd6 {
[%emt 0:00:00]} 20. Bxc6 {[%emt 0:00:00]} Qxc6 {[%emt 0:00:00]} 21. Bb2 {
[%emt 0:00:00]} Ne4 {[%emt 0:00:00]} 22. Nxe4 {[%emt 0:00:00]} dxe4 {[%emt 0:
00:00]} 23. Rc1 {[%emt 0:00:00]} Qb7 {[%emt 0:00:00]} 24. Qc2 {[%emt 0:00:00]}
Bxf3 {[%emt 0:00:00]} 25. Qc4+ {[%emt 0:00:00]} Kh8 {[%emt 0:00:00]} 26. gxf3 {
[%emt 0:00:09]} Rxf3 {[%emt 0:00:00]} 27. Qxe4 {[%emt 0:00:30]} Qxe4 28. Rxe4 {
[%emt 0:00:00]} Rxf2 {[%emt 0:00:00]} 29. Bd4 {[%emt 0:00:01]} Bxd4 {[%emt 0:
00:00]} 30. Rxd4 {[%emt 0:00:00]} Rb2 {[%emt 0:00:00]} 31. Rxc7 {[%emt 0:00:00]
} Re8 {[%emt 0:00:00]} 32. Re7 {[%emt 0:00:20]} Rb1+ {[%emt 0:00:00]} 33. Kg2 {
[%emt 0:00:00]} Rb2+ {[%emt 0:00:00]} 34. Kg1 {[%emt 0:00:00]} Rb1+ {[%emt 0:
00:00]} 35. Kg2 {[%emt 0:00:00]} Rb2+ {[%emt 0:00:00]} 36. Kg1 {[%emt 0:00:04]}
1/2-1/2

[Event "Gibraltar Masters 18th"]
[Site "Gibraltar"]
[Date "2020.01.21"]
[Round "1.31"]
[White "Nandhidhaa, P V."]
[Black "Praggnanandhaa, Rameshbabu"]
[Result "1-0"]
[ECO "B57"]
[WhiteElo "2312"]
[BlackElo "2602"]
[PlyCount "133"]
[EventDate "2020.01.21"]
[EventType "swiss"]
[EventRounds "10"]
[EventCountry "GGB"]
[SourceTitle "BritBase"]
[Source "John Saunders"]
[SourceDate "2021.06.05"]
[SourceVersion "1"]
[SourceVersionDate "2021.06.05"]
[SourceQuality "1"]
[TimeControl "40/100:0"]
[WhiteClock "0:08:23"]
[BlackClock "0:38:29"]

1. e4 {[%emt 0:00:00]} c5 {[%emt 0:00:00]} 2. Nf3 {[%emt 0:00:00]} Nc6 {
[%emt 0:00:00]} 3. d4 {[%emt 0:00:00]} cxd4 {[%emt 0:00:00]} 4. Nxd4 {[%emt 0:
00:00]} Nf6 {[%emt 0:00:00]} 5. Nc3 {[%emt 0:00:00]} d6 {[%emt 0:00:00]} 6. Bc4
{[%emt 0:00:00]} Qb6 {[%emt 0:00:00]} 7. Nb3 {[%emt 0:00:00]} e6 {[%emt 0:00:
00]} 8. Bf4 {[%emt 0:00:00]} Ne5 {[%emt 0:00:00]} 9. Be2 {[%emt 0:00:00]} a6 {
[%emt 0:00:00]} 10. g4 {[%emt 0:00:00]} Qc7 {[%emt 0:00:00]} 11. g5 {[%emt 0:
00:00]} Nfd7 {[%emt 0:00:00]} 12. a4 {[%emt 0:00:00]} b6 {[%emt 0:00:00]} 13.
Qd2 {[%emt 0:00:00]} Bb7 {[%emt 0:00:00]} 14. f3 {[%emt 0:00:00]} Be7 {[%emt 0:
00:00]} 15. h4 {[%emt 0:00:00]} O-O {[%emt 0:00:00]} 16. h5 {[%emt 0:00:00]} b5
{[%emt 0:00:00]} 17. axb5 {[%emt 0:00:00]} axb5 {[%emt 0:00:00]} 18. Rxa8 {
[%emt 0:00:00]} Rxa8 {[%emt 0:00:00]} 19. Nxb5 {[%emt 0:00:00]} Qb6 {[%emt 0:
00:00]} 20. Qe3 {[%emt 0:00:00]} Qd8 {[%emt 0:00:00]} 21. O-O {[%emt 0:00:00]}
f6 {[%emt 0:00:00]} 22. gxf6 {[%emt 0:00:00]} Nxf6 {[%emt 0:00:00]} 23. h6 {
[%emt 0:00:00]} Qe8 {[%emt 0:00:00]} 24. Nc7 {[%emt 0:00:00]} Qg6+ {[%emt 0:00:
00]} 25. Kh1 {[%emt 0:00:00]} Ra4 {[%emt 0:00:00]} 26. Nd2 {[%emt 0:00:00]}
Qh5+ {[%emt 0:00:00]} 27. Bh2 {[%emt 0:00:00]} d5 {[%emt 0:00:00]} 28. Rg1 {
[%emt 0:00:29]} g6 {[%emt 0:00:00]} 29. Nxe6 {[%emt 0:00:10]} Bd6 {[%emt 0:00:
04]} 30. Nf4 {[%emt 0:00:00]} Qxh6 {[%emt 0:00:56]} 31. Nxd5 {[%emt 0:00:20]}
Qxh2+ {[%emt 0:00:06]} 32. Kxh2 {[%emt 0:00:00]} Nxd5 {[%emt 0:00:00]} 33. Qb3
{[%emt 0:00:00]} Rb4 {[%emt 0:00:00]} 34. Qa2 {[%emt 0:00:00]} Rd4 {[%emt 0:00:
00]} 35. Kg2 {[%emt 0:00:00]} Rxd2 {[%emt 0:00:00]} 36. Re1 {[%emt 0:00:00]}
Kh8 {[%emt 0:00:00]} 37. exd5 {[%emt 0:00:00]} Nxf3 {[%emt 0:00:00]} 38. Qa5 {
[%emt 0:00:04]} Nxe1+ {[%emt 0:00:00]} 39. Kf1 {[%emt 0:00:00]} Rxd5 {[%emt 0:
00:00]} 40. Qd8+ {[%emt 0:00:00]} Kg7 {[%emt 0:00:00]} 41. Qd7+ {[%emt 0:00:36]
} Kh6 {[%emt 0:00:08]} 42. Qh3+ {[%emt 0:00:00]} Kg7 {[%emt 0:00:00]} 43. Kxe1
{[%emt 0:00:00]} Bb4+ {[%emt 0:00:00]} 44. c3 {[%emt 0:00:00]} Be7 {[%emt 0:00:
00]} 45. Bc4 {[%emt 0:00:00]} Re5+ {[%emt 0:00:00]} 46. Kd1 {[%emt 0:00:00]}
Be4 {[%emt 0:00:00]} 47. Qc8 {[%emt 0:00:00]} Bf6 {[%emt 0:00:00]} 48. Qg8+ {
[%emt 0:00:00]} Kh6 {[%emt 0:00:00]} 49. Qf7 {[%emt 0:00:00]} Rf5 {[%emt 0:00:
00]} 50. Qe6 {[%emt 0:00:00]} Rf4 {[%emt 0:00:00]} 51. Qd6 {[%emt 0:00:00]} Bg5
{[%emt 0:00:00]} 52. Bd3 {[%emt 0:00:00]} Bb7 {[%emt 0:00:00]} 53. Qb6 {
[%emt 0:00:00]} Rf7 {[%emt 0:00:00]} 54. Kc2 {[%emt 0:00:00]} Kg7 {[%emt 0:00:
00]} 55. b4 {[%emt 0:00:00]} Bf6 {[%emt 0:00:00]} 56. Qg1 {[%emt 0:00:00]} Rf8
{[%emt 0:00:00]} 57. Qg3 {[%emt 0:00:00]} Rc8 {[%emt 0:00:00]} 58. c4 {[%emt 0:
00:00]} Bd5 {[%emt 0:00:00]} 59. Qd6 {[%emt 0:00:00]} Bf7 {[%emt 0:00:00]} 60.
Qa6 {[%emt 0:00:00]} Rd8 {[%emt 0:00:00]} 61. c5 {[%emt 0:01:08]} h5 {[%emt 0:
00:00]} 62. c6 {[%emt 0:00:00]} Be5 {[%emt 0:00:00]} 63. Qb7 {[%emt 0:00:00]}
Rb8 {[%emt 0:00:00]} 64. Qe7 {[%emt 0:00:00]} Re8 {[%emt 0:00:00]} 65. Qd7 {
[%emt 0:00:00]} Kf8 {[%emt 0:00:00]} 66. c7 {[%emt 0:00:00]} Be6 {[%emt 0:00:
00]} 67. Qxe6 {[%emt 0:00:00]} 1-0

[Event "Gibraltar Masters 18th"]
[Site "Gibraltar"]
[Date "2020.01.21"]
[Round "1.32"]
[White "Basso, Pier Luigi"]
[Black "Pein, Malcolm"]
[Result "1-0"]
[ECO "E90"]
[WhiteElo "2600"]
[BlackElo "2310"]
[PlyCount "53"]
[EventDate "2020.01.21"]
[EventType "swiss"]
[EventRounds "10"]
[EventCountry "GGB"]
[SourceTitle "BritBase"]
[Source "John Saunders"]
[SourceDate "2021.06.05"]
[SourceVersion "1"]
[SourceVersionDate "2021.06.05"]
[SourceQuality "1"]
[TimeControl "40/100:0"]
[WhiteClock "0:16:12"]
[BlackClock "0:00:42"]

1. d4 {[%emt 0:00:00]} g6 {[%emt 0:00:00]} 2. e4 {[%emt 0:00:00]} Bg7 {[%emt 0:
00:00]} 3. c4 {[%emt 0:00:00]} c5 {[%emt 0:00:00]} 4. d5 {[%emt 0:00:00]} d6 {
[%emt 0:00:00]} 5. Nc3 {[%emt 0:00:00]} Nf6 {[%emt 0:00:00]} 6. Bd3 {[%emt 0:
00:00]} O-O {[%emt 0:00:00]} 7. h3 {[%emt 0:00:00]} Na6 {[%emt 0:00:00]} 8. Nf3
{[%emt 0:00:00]} e5 {[%emt 0:00:00]} 9. Bg5 {[%emt 0:00:00]} Nc7 {[%emt 0:00:
00]} 10. Qd2 {[%emt 0:00:00]} Qe8 {[%emt 0:00:00]} 11. g4 {[%emt 0:00:00]} a6 {
[%emt 0:00:00]} 12. Ne2 {[%emt 0:00:00]} b5 {[%emt 0:00:00]} 13. b3 {[%emt 0:
00:00]} bxc4 {[%emt 0:00:00]} 14. bxc4 {[%emt 0:00:00]} Rb8 {[%emt 0:00:00]}
15. Ng3 {[%emt 0:00:00]} Qa4 {[%emt 0:00:00]} 16. O-O {[%emt 0:00:00]} Bd7 {
[%emt 0:00:00]} 17. Rab1 {[%emt 0:00:00]} a5 {[%emt 0:00:00]} 18. Ne2 {[%emt 0:
00:00]} Na6 {[%emt 0:00:00]} 19. Rfc1 {[%emt 0:00:00]} Rb4 {[%emt 0:00:00]} 20.
Ne1 {[%emt 0:00:00]} Rxb1 {[%emt 0:00:00]} 21. Rxb1 {[%emt 0:00:00]} Rb8 {
[%emt 0:00:00]} 22. Nc3 {[%emt 0:00:00]} Qa3 {[%emt 0:00:00]} 23. Ra1 {[%emt 0:
00:00]} Ba4 {[%emt 0:00:00]} 24. Bc2 {[%emt 0:00:00]} Rb2 {[%emt 0:00:43]} 25.
Nxa4 {[%emt 0:00:00]} Qxh3 {[%emt 0:00:13]} 26. Nxb2 {[%emt 0:00:00]} Nxg4 {
[%emt 0:00:02]} 27. f3 {[%emt 0:00:00]} 1-0

[Event "Gibraltar Masters 18th"]
[Site "Gibraltar"]
[Date "2020.01.21"]
[Round "1.33"]
[White "Pranav, Anand"]
[Black "Can, Emre"]
[Result "1-0"]
[ECO "E11"]
[WhiteElo "2309"]
[BlackElo "2600"]
[PlyCount "107"]
[EventDate "2020.01.21"]
[EventType "swiss"]
[EventRounds "10"]
[EventCountry "GGB"]
[SourceTitle "BritBase"]
[Source "John Saunders"]
[SourceDate "2021.06.05"]
[SourceVersion "1"]
[SourceVersionDate "2021.06.05"]
[SourceQuality "1"]
[TimeControl "40/100:0"]
[WhiteClock "0:09:15"]
[BlackClock "0:27:24"]

1. d4 {[%emt 0:00:00]} e6 {[%emt 0:00:00]} 2. c4 {[%emt 0:00:00]} Bb4+ {
[%emt 0:00:00]} 3. Bd2 {[%emt 0:00:00]} c5 {[%emt 0:00:00]} 4. Bxb4 {[%emt 0:
00:00]} cxb4 {[%emt 0:00:00]} 5. Nf3 {[%emt 0:00:00]} Nf6 {[%emt 0:00:00]} 6.
a3 {[%emt 0:00:00]} bxa3 {[%emt 0:00:00]} 7. Rxa3 {[%emt 0:00:00]} O-O {
[%emt 0:00:00]} 8. Nc3 {[%emt 0:00:00]} Nc6 {[%emt 0:00:00]} 9. e3 {[%emt 0:00:
00]} b6 {[%emt 0:00:00]} 10. Be2 {[%emt 0:00:00]} Bb7 {[%emt 0:00:00]} 11. d5 {
[%emt 0:00:00]} Nb4 {[%emt 0:00:00]} 12. e4 {[%emt 0:00:00]} d6 {[%emt 0:00:00]
} 13. O-O {[%emt 0:00:00]} e5 {[%emt 0:00:00]} 14. Nd2 {[%emt 0:00:00]} a5 {
[%emt 0:00:00]} 15. Na2 {[%emt 0:00:00]} Qc7 {[%emt 0:00:00]} 16. Qb1 {[%emt 0:
00:00]} Nd7 {[%emt 0:00:00]} 17. Rg3 {[%emt 0:00:00]} g6 {[%emt 0:00:00]} 18.
Nc3 {[%emt 0:00:00]} Nc5 {[%emt 0:00:00]} 19. h4 {[%emt 0:00:00]} Qe7 {[%emt 0:
00:00]} 20. h5 {[%emt 0:00:00]} Bc8 {[%emt 0:00:00]} 21. Nf3 {[%emt 0:00:00]}
Qf6 {[%emt 0:00:00]} 22. Nh2 {[%emt 0:00:00]} Kh8 {[%emt 0:00:00]} 23. b3 {
[%emt 0:00:00]} Bd7 {[%emt 0:00:00]} 24. Bg4 {[%emt 0:00:00]} gxh5 {[%emt 0:00:
00]} 25. Bxd7 {[%emt 0:00:00]} Nxd7 {[%emt 0:00:00]} 26. Nb5 {[%emt 0:00:00]}
Nc5 {[%emt 0:00:00]} 27. Rf3 {[%emt 0:00:00]} Qg6 {[%emt 0:00:00]} 28. Rg3 {
[%emt 0:00:00]} Qh6 {[%emt 0:00:00]} 29. f4 {[%emt 0:00:21]} Rg8 {[%emt 0:00:
00]} 30. Rgf3 {[%emt 0:00:46]} Qg6 {[%emt 0:00:00]} 31. R3f2 {[%emt 0:00:02]}
Nbd3 {[%emt 0:00:00]} 32. f5 {[%emt 0:00:00]} Qf6 {[%emt 0:00:00]} 33. Rf3 {
[%emt 0:00:00]} Nf4 {[%emt 0:00:00]} 34. g3 {[%emt 0:00:00]} h4 {[%emt 0:00:00]
} 35. g4 {[%emt 0:00:00]} h5 {[%emt 0:00:00]} 36. Qb2 {[%emt 0:00:00]} Nfd3 {
[%emt 0:00:00]} 37. Qe2 {[%emt 0:00:00]} Nb4 {[%emt 0:00:00]} 38. R3f2 {
[%emt 0:00:00]} hxg4 {[%emt 0:00:00]} 39. Rg2 {[%emt 0:00:00]} Rg5 {[%emt 0:00:
00]} 40. Nxg4 {[%emt 0:00:00]} Qg7 {[%emt 0:00:00]} 41. f6 {[%emt 0:00:00]} Qh7
{[%emt 0:00:00]} 42. Nxd6 {[%emt 0:00:00]} Nbd3 {[%emt 0:00:00]} 43. Nh6 {
[%emt 0:00:00]} Rxg2+ {[%emt 0:00:00]} 44. Qxg2 {[%emt 0:00:00]} Rf8 {[%emt 0:
00:00]} 45. Ndf5 {[%emt 0:00:00]} Ra8 {[%emt 0:00:00]} 46. Qg7+ {[%emt 0:00:00]
} Qxg7+ {[%emt 0:00:00]} 47. fxg7+ {[%emt 0:00:00]} Kh7 {[%emt 0:00:00]} 48. d6
{[%emt 0:00:00]} Nf4 {[%emt 0:00:00]} 49. Rd1 {[%emt 0:00:00]} Ne2+ {[%emt 0:
00:00]} 50. Kg2 {[%emt 0:00:00]} Nc3 {[%emt 0:00:00]} 51. Rg1 {[%emt 0:00:00]}
Ne2 {[%emt 0:00:00]} 52. Rh1 {[%emt 0:00:00]} Nf4+ {[%emt 0:00:00]} 53. Kf3 {
[%emt 0:00:00]} h3 {[%emt 0:00:00]} 54. Nxf7 {[%emt 0:00:00]} 1-0